fUSD/lending_fUSD_20260423
["ID","MTS","AMOUNT","RATE_DAILY","PERIOD"]
[421056407,1776955867857,-295.84961,0.00017559,2]
[421056408,1776955867868,-313.620708,0.00017559,2]
[421056409,1776955867879,-977.784289,0.00017559,2]
[421056410,1776955867890,-315.053444,0.00017559,2]
[421056411,1776955867901,-457.675088,0.00017559,2]
[421056412,1776955867911,-1033.160415,0.00017559,2]
[421056413,1776955867921,-295.84961,0.00017559,2]
[421056414,1776955867932,-313.620708,0.00017559,2]
[421056415,1776955867942,-977.784289,0.00017559,2]
[421056416,1776955867953,-457.675088,0.00017559,2]
[421056417,1776955867963,-1033.160415,0.00017559,2]
[421056418,1776955867973,-295.84961,0.00017559,2]
[421056419,1776955867983,-977.784294,0.00017559,2]
[421056420,1776955867993,-313.620708,0.00017559,2]
[421056421,1776955868004,-457.675081,0.00017559,2]
[421056422,1776955868014,-1033.160415,0.00017559,2]
[421056423,1776955868024,-295.84961,0.00017559,2]
[421056424,1776955868035,-313.620708,0.00017559,2]
[421056425,1776955868046,-295.84961,0.00017559,2]
[421056426,1776955868057,-1033.160415,0.00017559,2]
[421056427,1776955868067,-313.620708,0.00017559,2]
[421056428,1776955868077,-295.84961,0.00017559,2]
[421056429,1776955868087,-470.96488449,0.00017559,2]
[421056430,1776955869162,-562.19553051,0.00017559,2]
[421056431,1776955869171,-313.620708,0.00017559,2]
[421056432,1776955869181,-295.84961,0.00017559,2]
[421056433,1776955869190,-1033.160419,0.00017559,2]
[421056434,1776955869199,-313.620708,0.00017559,2]
[421056435,1776955869209,-295.84961,0.00017559,2]
[421056436,1776955869219,-313.620708,0.00017559,2]
[421056437,1776955869228,-295.84961,0.00017559,2]
[421056438,1776955869237,-123.66461207,0.00017559,2]
[421056501,1776957032788,-257.0,8.219e-05,2]
[421056502,1776957032798,-242.50294632,8.219e-05,2]
[421056503,1776957032809,-7.49705368,8.219e-05,2]
[421056504,1776957032819,-280.0,8.219e-05,2]
[421056505,1776957032828,-500.0,8.25e-05,2]
[421056506,1776957032838,-500.0,8.25e-05,2]
[421056507,1776957032848,-500.0,8.25e-05,2]
[421056508,1776957032858,-1200.0,8.258e-05,2]
[421056509,1776957032868,-300.0,8.259e-05,2]
[421056510,1776957032878,-300.0,8.259e-05,2]
[421056511,1776957032888,-2354.68351985,8.259e-05,2]
[421056512,1776957032898,-300.0,8.294e-05,2]
[421056513,1776957032908,-300.0,8.466e-05,2]
[421056514,1776957032918,-1200.0,8.467e-05,2]
[421056515,1776957032928,-300.0,8.518e-05,2]
[421056516,1776957032937,-176.03,8.554e-05,2]
[421056517,1776957032948,-198.03,8.672e-05,2]
[421056518,1776957032957,-237.64,8.738e-05,2]
[421056519,1776957032966,-492.0,8.788e-05,2]
[421056520,1776957032977,-264.05,8.807e-05,2]
[421056521,1776957032987,-57565.1988,8.851e-05,2]
[421056522,1776957032996,-150.0,8.851e-05,2]
[421056523,1776957033006,-300.0,8.851e-05,2]
[421056524,1776957033016,-2285.4488,8.852e-05,2]
[421056525,1776957033026,-51920.8056,8.852e-05,2]
[421056526,1776957033035,-1974.3743,8.852e-05,2]
[421056527,1776957033045,-1527.76,8.87e-05,2]
[421056528,1776957033054,-150.99,8.87e-05,2]
[421056529,1776957033064,-9999.99,8.87e-05,2]
[421056530,1776957033074,-24770.62,8.87e-05,2]
[421056531,1776957033083,-299.99,8.87e-05,2]
[421056532,1776957033093,-462.1,8.908e-05,2]
[421056533,1776957033102,-209.17,8.908e-05,2]
[421056534,1776957033111,-169.75,8.908e-05,2]
[421056535,1776957033121,-183.9,8.908e-05,2]
[421056536,1776957033131,-352.07,8.908e-05,2]
[421056537,1776957033141,-162.69,8.908e-05,2]
[421056538,1776957033151,-187.22,8.908e-05,2]
[421056539,1776957033161,-185.36,8.908e-05,2]
[421056540,1776957033170,-160.0,8.908e-05,2]
[421056541,1776957033180,-169.68,8.908e-05,2]
[421056542,1776957033189,-191.56,8.908e-05,2]
[421056543,1776957033200,-167.64,8.908e-05,2]
[421056544,1776957033209,-198.37,8.908e-05,2]
[421056545,1776957033218,-178.71,8.908e-05,2]
[421056546,1776957033228,-192.09,8.908e-05,2]
[421056547,1776957033237,-193.07,8.908e-05,2]
[421056548,1776957033247,-396.08,8.908e-05,2]
[421056549,1776957033257,-2500.0,8.951e-05,2]
[421056550,1776957033266,-500.0,8.951e-05,2]
[421056551,1776957033275,-7775.166,8.951e-05,2]
[421056552,1776957033285,-550.151,8.951e-05,2]
[421056553,1776957033294,-33086.6184,8.952e-05,2]
[421056554,1776957033304,-4649.1176,8.952e-05,2]
[421056555,1776957033313,-150.0,9e-05,2]
[421056556,1776957033323,-431.67,9.007e-05,2]
[421056557,1776957033332,-218.73,9.007e-05,2]
[421056558,1776957033342,-396.75,9.007e-05,2]
[421056559,1776957033351,-254.63,9.007e-05,2]
[421056560,1776957033361,-554.52,9.007e-05,2]
[421056561,1776957033371,-357.45,9.007e-05,2]
[421056562,1776957033381,-212.19,9.007e-05,2]
[421056563,1776957033390,-223.52,9.007e-05,2]
[421056564,1776957033400,-217.81,9.008e-05,2]
[421056565,1776957033409,-1552.04943343,9.041e-05,2]
[421056566,1776957033419,-250.0,9.041e-05,2]
[421056567,1776957033429,-300.0,9.041e-05,2]
[421056568,1776957033439,-300.0,9.041e-05,2]
[421056569,1776957033449,-5000.0,9.041e-05,2]
[421056570,1776957033459,-500.0,9.041e-05,2]
[421056571,1776957033468,-250.0,9.041e-05,2]
[421056572,1776957033477,-151.0,9.049e-05,2]
[421056573,1776957033487,-151.0,9.049e-05,2]
[421056574,1776957033496,-151.0,9.049e-05,2]
[421056575,1776957033505,-10228.7737,9.051e-05,2]
[421056576,1776957033514,-150.0,9.051e-05,2]
[421056577,1776957033524,-1680.0,9.084e-05,2]
[421056578,1776957033533,-500.0,9.225e-05,2]
[421056579,1776957033542,-420.0,9.313e-05,2]
[421056580,1776957033551,-153.84497306,9.325e-05,2]
[421056581,1776957033561,-500.0,9.499e-05,2]
[421056582,1776957033571,-150.0,9.616e-05,2]
[421056583,1776957033580,-150.0,9.616e-05,2]
[421056584,1776957033589,-255.0,9.736e-05,2]
[421056585,1776957033599,-300.0,9.736e-05,2]
[421056586,1776957033608,-500.0,9.773e-05,2]
[421056587,1776957033618,-966.62938104,9.992e-05,2]
[421056588,1776957033631,-1384.37061896,9.992e-05,2]
[421056589,1776957033640,-500.0,9.999e-05,2]
[421056590,1776957033650,-207.68023038,9.999e-05,2]
[421056591,1776957033659,-500.0,9.999e-05,2]
[421056592,1776957033669,-495.49226068,9.999e-05,2]
[421056593,1776957033679,-500.0,9.999e-05,2]
[421056594,1776957033688,-500.0,9.999e-05,2]
[421056595,1776957033698,-500.0,9.999e-05,2]
[421056596,1776957033707,-500.0,9.999e-05,2]
[421056597,1776957033716,-500.0,9.999e-05,2]
[421056598,1776957033726,-500.0,9.999e-05,2]
[421056599,1776957033735,-1067.71113141,0.0001,2]
[421056600,1776957033745,-1215.05890279,0.0001,2]
[421056601,1776957033755,-503.45336157,0.0001,2]
[421056602,1776957033765,-1183.81470972,0.0001,2]
[421056603,1776957033774,-200.0,0.0001,2]
[421056604,1776957033783,-1386.78395259,0.0001,2]
[421056605,1776957033792,-587.0,0.00010244,2]
[421056606,1776957033802,-202.034511,0.00010548,2]
[421056607,1776957033812,-151.38628949,0.0001061,2]
[421056608,1776957033821,-5438.38498593,0.0001061,2]
[421056609,1776957033831,-209.52960664,0.0001061,2]
[421056610,1776957033840,-1440.5406409,0.0001061,2]
[421056611,1776957033853,-950.90310832,0.00010631,2]
[421056612,1776957033863,-500.0,0.00010673,2]
[421056613,1776957033873,-500.0,0.00010673,2]
[421056614,1776957033882,-150.0,0.00010685,2]
[421056615,1776957033891,-152.22868831,0.0001069,2]
[421056616,1776957033901,-14213.63866811,0.000107,2]
[421056617,1776957033930,-500.0,9.999e-05,2]
[421056618,1776957033939,-256.18617286,9.999e-05,2]
[421056619,1776957033951,-243.81382714,9.999e-05,2]
[421056620,1776957033960,-17045.59824229,0.000107,2]
[421056621,1776957033972,-1610.89109739,0.000107,2]
[421056622,1776957034007,-500.0,9.999e-05,2]
[421056623,1776957034016,-625.82119653,9.999e-05,2]
[421056624,1776957034025,-7260.64006577,0.000107,2]
[421056625,1776957034058,-332.7359301,9.999e-05,2]
[421056626,1776957038310,-500.0,8.869e-05,2]
[421056628,1776957038320,-42.46609112,8.869e-05,2]
[421056633,1776957038361,-457.53390888,8.869e-05,2]
[421056634,1776957038371,-44.1660912,8.869e-05,2]
[421056635,1776957038418,-455.8339088,8.869e-05,2]
[421056636,1776957038429,-463.72450742,8.869e-05,2]
[421056637,1776957038438,-500.0,8.869e-05,2]
[421056638,1776957038448,-237.1223885,8.869e-05,2]
[421056639,1776957038457,-500.0,8.869e-05,2]
[421056640,1776957038466,-500.0,8.869e-05,2]
[421056643,1776957038807,-500.0,8.869e-05,2]
[421056645,1776957038816,-485.53042469,8.869e-05,2]
[421056647,1776957038826,-500.0,8.869e-05,2]
[421056649,1776957038836,-500.0,8.869e-05,2]
[421056651,1776957038845,-500.0,8.869e-05,2]
[421056653,1776957038855,-500.0,8.869e-05,2]
[421056655,1776957038864,-500.0,8.869e-05,2]
[421056657,1776957038873,-500.0,8.869e-05,2]
[421056659,1776957038883,-500.0,8.869e-05,2]
[421056661,1776957038892,-500.0,8.869e-05,2]
[421056663,1776957038902,-500.0,8.869e-05,2]
[421056664,1776957038911,-500.0,8.869e-05,2]
[421056665,1776957038921,-500.0,8.869e-05,2]
[421056666,1776957038931,-500.0,8.869e-05,2]
[421056667,1776957038940,-500.0,8.869e-05,2]
[421056668,1776957038950,-500.0,8.869e-05,2]
[421056669,1776957038959,-500.0,8.869e-05,2]
[421056670,1776957038968,-206.71504099,8.869e-05,2]
[421056671,1776957038978,-500.0,8.869e-05,2]
[421056672,1776957038987,-500.0,8.869e-05,2]
[421056673,1776957038997,-500.0,8.869e-05,2]
[421056674,1776957039007,-500.0,8.869e-05,2]
[421056675,1776957039016,-500.0,8.869e-05,2]
[421056676,1776957039025,-500.0,8.869e-05,2]
[421056677,1776957039034,-500.0,8.869e-05,2]
[421056678,1776957039043,-500.0,8.869e-05,2]
[421056679,1776957039054,-500.0,8.869e-05,2]
[421056680,1776957039064,-500.0,8.869e-05,2]
[421056681,1776957039073,-500.0,8.869e-05,2]
[421056682,1776957039083,-500.0,8.869e-05,2]
[421056683,1776957039093,-500.0,8.869e-05,2]
[421056684,1776957039102,-367.24669818,8.869e-05,2]
[421056685,1776957039116,-132.75330182,8.869e-05,2]
[421056686,1776957039125,-500.0,8.869e-05,2]
[421056687,1776957039134,-500.0,8.869e-05,2]
[421056688,1776957039144,-500.0,8.869e-05,2]
[421056689,1776957039154,-167.2640699,9.999e-05,2]
[421056690,1776957039164,-411.88811338,9.999e-05,2]
[421056691,1776957039174,-500.0,9.999e-05,2]
[421056692,1776957039183,-500.0,9.999e-05,2]
[421056693,1776957039193,-500.0,9.999e-05,2]
[421056694,1776957039202,-500.0,9.999e-05,2]
[421056695,1776957039224,-44781.57884457,0.000107,2]
[421056696,1776957039239,-829.67010334,0.000107,2]
[421056697,1776957039256,-5115.00000002,0.000107,2]
[421056698,1776957039268,-11890.46956227,0.000107,2]
[421056699,1776957039284,-3318.24780251,0.000107,2]
[421056700,1776957040686,-5496043.15051048,0.000107,2]
[421056701,1776957040844,-500.0,0.000107,2]
[421056702,1776957040951,-967.8,0.000107,2]
[421056738,1776957043348,-292.09887039,0.000107,2]
[421056739,1776957043612,-1174420.63061089,0.000107,2]
[421056825,1776957046368,-553.523,0.000107,2]
[421056826,1776957046381,-1025.25194819,0.000107,2]
[421056827,1776957046393,-1119.52362815,0.000107,2]
[421056828,1776957046475,-1452.01192522,0.000107,2]
[421056829,1776957046530,-1173.21782811,0.000107,2]
[421056830,1776957046542,-1141.6,0.000107,2]
[421056831,1776957046584,-7145.20860515,0.000107,2]
[421056832,1776957046596,-9545.45744376,0.000107,2]
[421056833,1776957046850,-290.85835,0.000107,2]
[421056952,1776958231454,-150.0,8.2e-05,2]
[421056953,1776958231464,-257.0,8.2e-05,2]
[421056954,1776958231473,-280.0,8.219e-05,2]
[421056955,1776958231483,-500.0,8.222e-05,2]
[421056956,1776958231493,-300.0,8.225e-05,2]
[421056957,1776958231502,-351.57966066,8.228e-05,2]
[421056958,1776958231512,-5000.0,8.23e-05,2]
[421056959,1776958231521,-300.0,8.23e-05,2]
[421056960,1776958231531,-1200.0,8.233e-05,2]
[421056961,1776958232096,-136.83925605,8.393e-05,2]
[421056962,1776958232109,-65.95074395,8.393e-05,2]
[421056963,1776958232119,-300.0,8.669e-05,2]
[421056964,1776958232129,-150.0,8.669e-05,2]
[421056965,1776958232139,-300.0,8.669e-05,2]
[421056966,1776958232148,-2500.0,8.67e-05,2]
[421056967,1776958232158,-500.0,8.753e-05,2]
[421056968,1776958232168,-4537.80925605,8.768e-05,2]
[421056969,1776958232193,-537.56718,8.768e-05,2]
[421056971,1776958232204,-1144.75656395,8.768e-05,2]
[421056972,1776958232216,-440.121,8.768e-05,2]
[421056973,1776958232227,-632.90353496,8.769e-05,2]
[421056974,1776958232237,-141582.9333,8.77e-05,2]
[421056975,1776958232246,-500.0,8.833e-05,2]
[421056976,1776958232256,-562.2908788,8.833e-05,2]
[421056977,1776958232265,-522.06145725,8.833e-05,2]
[421056978,1776958232275,-500.0,8.833e-05,2]
[421056979,1776958232284,-503.9209333,8.833e-05,2]
[421056980,1776958232294,-150.0,8.849e-05,2]
[421056981,1776958232303,-114674.69488841,8.851e-05,2]
[421056982,1776958232315,-3789.06293253,8.851e-05,2]
[421056983,1776958232327,-60003.12934326,8.851e-05,2]
[421056984,1776958232338,-1254.41808677,8.851e-05,2]
[421056985,1776958232351,-255.51004428,8.851e-05,2]
[421056986,1776958232362,-400.0,8.851e-05,2]
[421056987,1776958232374,-5402.76608939,8.851e-05,2]
[421056988,1776958232389,-533.19435917,8.851e-05,2]
[421056989,1776958232413,-427.65,8.851e-05,2]
[421056997,1776958237758,-282.10600273,8.57e-05,2]
[421056998,1776958237869,-18216.17296858,8.57e-05,2]
[421056999,1776958237881,-48993.48432967,8.57e-05,2]
[421057000,1776958237894,-829.67010334,8.57e-05,2]
[421057091,1776958239988,-52071.22031035,8.57e-05,2]
[421057092,1776958240000,-1883.5120129,8.57e-05,2]
[421057093,1776958240012,-289.5,8.57e-05,2]
[421057094,1776958240041,-261.0,8.57e-05,2]
[421057095,1776958240051,-1757.596905,8.57e-05,2]
[421057096,1776958240062,-32995.44667226,8.57e-05,2]
[421057097,1776958240155,-800.30798175,8.57e-05,2]
[421057104,1776958242634,-6536.39849417,8.57e-05,2]
[421057105,1776958242797,-661.03999474,8.57e-05,2]
[421057106,1776958242854,-2818.08324811,8.57e-05,2]
[421057112,1776958245721,-529.86,8.57e-05,2]
[421057113,1776958245911,-3979.3912413,8.57e-05,2]
[421057114,1776958246183,-26979.45426156,8.57e-05,2]
[421057115,1776958246195,-399.90644688,8.57e-05,2]
[421057120,1776958649090,2638.96819729,6.6e-05,2]
[421057289,1776959431711,-282.40141966,8.111e-05,2]
[421057290,1776959431720,-17.97857936,8.119e-05,2]
[421057291,1776959431732,-482.02142064,8.119e-05,2]
[421057292,1776959431742,-256.0,8.119e-05,2]
[421057293,1776959431751,-4912.723694,8.178e-05,2]
[421057294,1776959431760,-35.90064786,8.195e-05,2]
[421057295,1776959431772,-7861.83645134,8.195e-05,2]
[421057296,1776959431784,-2102.2729008,8.195e-05,2]
[421057297,1776959431794,-280.0,8.219e-05,2]
[421057298,1776959431803,-1200.0,8.293e-05,2]
[421057299,1776959431813,-300.0,8.293e-05,2]
[421057300,1776959431823,-150.0,8.294e-05,2]
[421057301,1776959431832,-300.0,8.294e-05,2]
[421057302,1776959431842,-500.0,8.295e-05,2]
[421057303,1776959431851,-500.0,8.295e-05,2]
[421057304,1776959431861,-500.0,8.295e-05,2]
[421057305,1776959431871,-500.0,8.295e-05,2]
[421057306,1776959431882,-500.0,8.295e-05,2]
[421057307,1776959431891,-500.0,8.295e-05,2]
[421057308,1776959431901,-500.0,8.295e-05,2]
[421057309,1776959431911,-167.48797044,8.295e-05,2]
[421057310,1776959431923,-332.51202956,8.295e-05,2]
[421057311,1776959431933,-500.0,8.295e-05,2]
[421057312,1776959431943,-500.0,8.295e-05,2]
[421057313,1776959431953,-477.41497044,8.295e-05,2]
[421057314,1776959431964,-22.58502956,8.295e-05,2]
[421057315,1776959431974,-500.0,8.295e-05,2]
[421057316,1776959431984,-500.0,8.295e-05,2]
[421057317,1776959431994,-500.0,8.295e-05,2]
[421057318,1776959432004,-500.0,8.295e-05,2]
[421057319,1776959432014,-500.0,8.295e-05,2]
[421057320,1776959432023,-500.0,8.295e-05,2]
[421057321,1776959432033,-500.0,8.295e-05,2]
[421057322,1776959432043,-397.71812063,8.295e-05,2]
[421057323,1776959432053,-500.0,8.295e-05,2]
[421057324,1776959432063,-500.0,8.295e-05,2]
[421057325,1776959432074,-500.0,8.295e-05,2]
[421057326,1776959432084,-366.38683773,8.295e-05,2]
[421057327,1776959432094,-150.0,8.295e-05,2]
[421057328,1776959432103,-278.49220431,8.295e-05,2]
[421057329,1776959432112,-500.0,8.295e-05,2]
[421057331,1776959432122,-500.0,8.295e-05,2]
[421057332,1776959432131,-150.0,8.295e-05,2]
[421057333,1776959432140,-500.0,8.295e-05,2]
[421057334,1776959432150,-500.0,8.295e-05,2]
[421057335,1776959432159,-500.0,8.295e-05,2]
[421057336,1776959432168,-431.99505678,8.295e-05,2]
[421057337,1776959432178,-151.16292505,8.295e-05,2]
[421057338,1776959432187,-150.0,8.295e-05,2]
[421057339,1776959432196,-150.0,8.295e-05,2]
[421057340,1776959432206,-262.95744375,8.295e-05,2]
[421057341,1776959432215,-500.0,8.295e-05,2]
[421057342,1776959432224,-500.0,8.295e-05,2]
[421057343,1776959432234,-500.0,8.295e-05,2]
[421057344,1776959432243,-500.0,8.295e-05,2]
[421057345,1776959432252,-500.0,8.295e-05,2]
[421057346,1776959432262,-500.0,8.295e-05,2]
[421057347,1776959432271,-500.0,8.295e-05,2]
[421057348,1776959432281,-500.0,8.295e-05,2]
[421057349,1776959432290,-500.0,8.295e-05,2]
[421057350,1776959432300,-535.9698256,8.295e-05,2]
[421057351,1776959432309,-500.0,8.295e-05,2]
[421057352,1776959432318,-500.0,8.295e-05,2]
[421057353,1776959432328,-500.0,8.295e-05,2]
[421057354,1776959432337,-500.0,8.295e-05,2]
[421057355,1776959432347,-500.0,8.295e-05,2]
[421057356,1776959432356,-500.0,8.295e-05,2]
[421057357,1776959432365,-500.0,8.295e-05,2]
[421057358,1776959432375,-500.0,8.295e-05,2]
[421057359,1776959432384,-500.0,8.295e-05,2]
[421057360,1776959432393,-318.28402247,8.295e-05,2]
[421057361,1776959432403,-150.0,8.3e-05,2]
[421057362,1776959432412,-264.80283935,8.33e-05,2]
[421057363,1776959432422,-727.66,8.34e-05,2]
[421057364,1776959432431,-549.38892162,8.469e-05,2]
[421057365,1776959432441,-14903.26282272,8.47e-05,2]
[421057366,1776959432453,-6624.48233038,8.47e-05,2]
[421057367,1776959432465,-3925.75,8.47e-05,2]
[421057368,1776959432493,-895.86861586,8.47e-05,2]
[421057369,1776959432504,-708.24423702,8.47e-05,2]
[421057370,1776959432520,-518.12831108,8.47e-05,2]
[421057371,1776959432531,-1167.93980651,8.47e-05,2]
[421057443,1776959439001,-18216.17296858,8.47e-05,2]
[421057445,1776959439017,-35136.59380785,8.47e-05,2]
[421057447,1776959439026,-200.0,8.5e-05,2]
[421057450,1776959439037,-363.83,8.512e-05,2]
[421057451,1776959439046,-270.1737804,8.553e-05,2]
[421057453,1776959439056,-501.98527228,8.553e-05,2]
[421057455,1776959439065,-500.0,8.553e-05,2]
[421057457,1776959439075,-500.0,8.553e-05,2]
[421057459,1776959439084,-4976.107,8.568e-05,2]
[421057462,1776959439094,-352.097,8.568e-05,2]
[421057464,1776959439103,-229.28207275,8.57e-05,2]
[421057466,1776959439112,-150.0,8.57e-05,2]
[421057468,1776959439121,-203.0,8.57e-05,3]
[421057470,1776959439131,-1520.0,8.57e-05,3]
[421057472,1776959439139,-157.0,8.57e-05,3]
[421057474,1776959439149,-264.80283935,8.604e-05,2]
[421057476,1776959439158,-152.0,8.613e-05,2]
[421057478,1776959439167,-152.0,8.632e-05,2]
[421057480,1776959439176,-152.0,8.632e-05,2]
[421057482,1776959439185,-152.0,8.632e-05,2]
[421057484,1776959439193,-152.0,8.64e-05,2]
[421057485,1776959439203,-152.0,8.64e-05,2]
[421057487,1776959439212,-152.0,8.64e-05,2]
[421057489,1776959439222,-152.0,8.64e-05,2]
[421057491,1776959439231,-425.9152174,8.717e-05,2]
[421057493,1776959439240,-825.1157918,8.717e-05,2]
[421057495,1776959439249,-4019.88228566,8.717e-05,2]
[421057498,1776959439261,-4897.49151961,8.717e-05,2]
[421057500,1776959439276,-5306.04156403,8.717e-05,2]
[421057502,1776959439285,-232.7481021,8.717e-05,2]
[421057504,1776959439295,-8219.7918045,8.717e-05,2]
[421057506,1776959439304,-202.5748256,8.717e-05,2]
[421057509,1776959439314,-22597.2857312,8.717e-05,2]
[421057511,1776959439324,-21354.9755,8.751e-05,2]
[421057513,1776959439333,-500.0,8.851e-05,2]
[421057515,1776959439342,-5000.0,8.922e-05,2]
[421057517,1776959439353,-300.0,8.922e-05,2]
[421057519,1776959439362,-5000.0,8.922e-05,2]
[421057521,1776959439371,-250.0,8.922e-05,2]
[421057522,1776959439380,-300.0,8.922e-05,2]
[421057524,1776959439390,-300.0,8.922e-05,2]
[421057526,1776959439398,-5000.0,8.922e-05,2]
[421057529,1776959439409,-500.0,8.922e-05,2]
[421057531,1776959439419,-250.0,8.922e-05,2]
[421057533,1776959439429,-300.0,8.922e-05,2]
[421057534,1776959439438,-5000.0,8.922e-05,2]
[421057536,1776959439447,-500.0,8.922e-05,2]
[421057538,1776959439456,-500.0,8.922e-05,2]
[421057540,1776959439465,-552.98518151,8.922e-05,2]
[421057542,1776959439474,-250.0,8.922e-05,2]
[421057544,1776959439484,-5000.0,8.922e-05,2]
[421057546,1776959439493,-220.66903279,8.933e-05,2]
[421057548,1776959439502,-500.0,9.101e-05,2]
[421057550,1776959439511,-1680.0,9.122e-05,2]
[421057552,1776959439521,-255.0,9.123e-05,2]
[421057554,1776959439531,-300.0,9.123e-05,2]
[421057556,1776959439541,-150.0,9.616e-05,2]
[421057558,1776959439550,-150.0,9.616e-05,2]
[421057560,1776959439560,-150.0,9.616e-05,2]
[421057562,1776959439570,-150.0,9.616e-05,2]
[421057564,1776959439579,-150.0,9.616e-05,2]
[421057565,1776959439591,-150.0,9.616e-05,2]
[421057566,1776959439601,-150.0,9.616e-05,2]
[421057567,1776959439611,-150.0,9.616e-05,2]
[421057568,1776959439620,-150.0,9.616e-05,2]
[421057569,1776959439629,-150.0,9.616e-05,2]
[421057570,1776959439639,-150.0,9.616e-05,2]
[421057571,1776959439648,-22597.2857312,9.624e-05,2]
[421057572,1776959439657,-202.5748256,9.628e-05,2]
[421057573,1776959439667,-150.0,9.639e-05,2]
[421057574,1776959439676,-825.1157918,9.643e-05,2]
[421057575,1776959439686,-14223.4153693,9.646e-05,2]
[421057576,1776959439695,-150.0,9.65e-05,2]
[421057577,1776959439704,-150.0,9.651e-05,2]
[421057578,1776959439714,-232.7481021,9.654e-05,2]
[421057579,1776959439724,-150.0,9.656e-05,2]
[421057580,1776959439733,-8219.7918045,9.657e-05,2]
[421057581,1776959439743,-150.0,9.662e-05,2]
[421057582,1776959439752,-150.0,9.683e-05,2]
[421057583,1776959439762,-150.0,9.685e-05,2]
[421057584,1776959439771,-150.0,9.685e-05,2]
[421057585,1776959439780,-150.0,9.688e-05,2]
[421057586,1776959439789,-150.0,9.693e-05,2]
[421057587,1776959439799,-150.0,9.696e-05,2]
[421057588,1776959439808,-150.0,9.705e-05,2]
[421057589,1776959439817,-150.0,9.707e-05,2]
[421057590,1776959439827,-150.0,9.717e-05,2]
[421057591,1776959439836,-150.0,9.72e-05,2]
[421057592,1776959439846,-150.0,9.73e-05,2]
[421057593,1776959439855,-150.0,9.735e-05,2]
[421057595,1776959439865,-184.311658,9.736e-05,2]
[421057597,1776959439874,-150.0,9.75e-05,2]
[421057599,1776959439885,-150.0,9.75e-05,2]
[421057601,1776959439894,-150.0,9.753e-05,2]
[421057603,1776959439904,-150.0,9.754e-05,2]
[421057605,1776959439914,-160.0,9.758e-05,2]
[421057607,1776959439924,-309.337405,9.758e-05,2]
[421057609,1776959439934,-458.67481,9.758e-05,2]
[421057611,1776959439943,-150.0,9.759e-05,2]
[421057613,1776959439952,-150.0,9.769e-05,2]
[421057615,1776959439961,-150.0,9.775e-05,2]
[421057617,1776959439971,-150.0,9.776e-05,2]
[421057619,1776959439980,-150.0,9.783e-05,2]
[421057621,1776959439989,-150.0,9.789e-05,2]
[421057623,1776959440000,-150.0,9.795e-05,2]
[421057626,1776959440010,-150.0,9.798e-05,2]
[421057628,1776959440019,-160.0,9.8e-05,2]
[421057630,1776959440029,-196.020541,9.8e-05,2]
[421057632,1776959440038,-232.041083,9.8e-05,2]
[421057633,1776959440047,-188.892522,9.8e-05,2]
[421057636,1776959440057,-160.0,9.8e-05,2]
[421057638,1776959440067,-409.027875,9.8e-05,2]
[421057640,1776959440076,-658.05575,9.8e-05,2]
[421057642,1776959440086,-237.589247,9.8e-05,2]
[421057644,1776959440095,-150.0,9.814e-05,2]
[421057646,1776959440104,-150.0,9.817e-05,2]
[421057648,1776959440113,-150.0,9.821e-05,2]
[421057650,1776959440122,-150.0,9.823e-05,2]
[421057652,1776959440131,-150.0,9.83e-05,2]
[421057654,1776959440140,-150.0,9.844e-05,2]
[421057656,1776959440149,-150.0,9.845e-05,2]
[421057658,1776959440158,-150.0,9.85e-05,2]
[421057660,1776959440168,-150.0,9.854e-05,2]
[421057661,1776959440177,-150.0,9.858e-05,2]
[421057663,1776959440186,-150.0,9.867e-05,2]
[421057665,1776959440195,-150.0,9.884e-05,2]
[421057667,1776959440204,-150.0,9.884e-05,2]
[421057669,1776959440214,-150.0,9.884e-05,2]
[421057671,1776959440223,-150.0,9.889e-05,2]
[421057673,1776959440232,-150.0,9.892e-05,2]
[421057675,1776959440242,-150.0,9.893e-05,2]
[421057678,1776959440253,-150.0,9.901e-05,2]
[421057680,1776959440262,-150.0,9.912e-05,2]
[421057682,1776959440272,-150.0,9.917e-05,2]